[Event "Early-Titled-Tuesday-Blitz-April-16-2024"]
[Site "Chess.com"]
[Date "2024.04.16"]
[Round "2"]
[White "nickmatta"]
[Black "KorolDimitriy75"]
[Result "1-0"]
[WhiteElo "2534"]
[BlackElo "2311"]
[TimeControl "180+1"]
[EndTime "8:17:11 PDT"]
[Termination "nickmatta won on time"]

1. d4 {[%clk 0:03:00.9]} 1... Nf6 {[%clk 0:02:59.8]} 2. Bf4 {[%clk 0:03:01.4]}
2... c5 {[%clk 0:02:59.8]} 3. d5 {[%clk 0:02:54.8]} 3... Qb6 {[%clk 0:02:57]} 4.
Nc3 {[%clk 0:02:23.4]} 4... Qxb2 {[%clk 0:02:55.9]} 5. Bd2 {[%clk 0:02:23.5]}
5... Qb6 {[%clk 0:02:55.4]} 6. e4 {[%clk 0:02:22.1]} 6... d6 {[%clk 0:02:55.2]}
7. Rb1 {[%clk 0:02:21.2]} 7... Qd8 {[%clk 0:02:55.2]} 8. Nf3 {[%clk 0:02:19.8]}
8... g6 {[%clk 0:02:46.2]} 9. Bb5+ {[%clk 0:02:15.7]} 9... Bd7 {[%clk
0:02:45.8]} 10. e5 {[%clk 0:02:12]} 10... dxe5 {[%clk 0:02:43]} 11. Nxe5 {[%clk
0:02:11.4]} 11... Bxb5 {[%clk 0:02:41.1]} 12. Rxb5 {[%clk 0:02:12.1]} 12... Nbd7
{[%clk 0:02:00.1]} 13. Nxd7 {[%clk 0:01:48.5]} 13... Qxd7 {[%clk 0:02:00.3]} 14.
Rxc5 {[%clk 0:01:49.2]} 14... Bg7 {[%clk 0:02:00.4]} 15. O-O {[%clk 0:01:48.9]}
15... O-O {[%clk 0:02:00.2]} 16. Re1 {[%clk 0:01:44.8]} 16... Rac8 {[%clk
0:01:49.1]} 17. Rxc8 {[%clk 0:01:41]} 17... Rxc8 {[%clk 0:01:50]} 18. Qf3 {[%clk
0:01:38.6]} 18... Rd8 {[%clk 0:01:34]} 19. Be3 {[%clk 0:01:27.2]} 19... Nxd5
{[%clk 0:01:23.9]} 20. Nxd5 {[%clk 0:01:27.5]} 20... Qxd5 {[%clk 0:01:24.7]} 21.
Bxa7 {[%clk 0:01:25.2]} 21... Qxf3 {[%clk 0:00:58.8]} 22. gxf3 {[%clk
0:01:26.1]} 22... Bf6 {[%clk 0:00:53.5]} 23. Rb1 {[%clk 0:01:23.6]} 23... Rd7
{[%clk 0:00:42.8]} 24. Be3 {[%clk 0:01:23.4]} 24... h5 {[%clk 0:00:39.4]} 25. c4
{[%clk 0:01:19.1]} 25... e6 {[%clk 0:00:33]} 26. Kf1 {[%clk 0:01:16.6]} 26...
Kf8 {[%clk 0:00:30]} 27. Ke2 {[%clk 0:01:15.4]} 27... Ke8 {[%clk 0:00:24.4]} 28.
a4 {[%clk 0:01:15.7]} 28... Kd8 {[%clk 0:00:22.3]} 29. a5 {[%clk 0:01:13.7]}
29... Kc8 {[%clk 0:00:22.1]} 30. Rb5 {[%clk 0:01:03.2]} 30... Bd4 {[%clk
0:00:13]} 31. Bf4 {[%clk 0:01:01.2]} 31... e5 {[%clk 0:00:10.2]} 32. Bd2 {[%clk
0:00:41.1]} 32... Kc7 {[%clk 0:00:09.5]} 33. Bb4 {[%clk 0:00:40.6]} 33... Kc6
{[%clk 0:00:09.1]} 34. Bf8 {[%clk 0:00:28.1]} 34... f5 {[%clk 0:00:07.7]} 35.
Bh6 {[%clk 0:00:25]} 35... f4 {[%clk 0:00:06]} 36. Bf8 {[%clk 0:00:24.6]} 36...
Ba7 {[%clk 0:00:04.8]} 37. Rxe5 {[%clk 0:00:19.9]} 1-0

[Event "Early-Titled-Tuesday-Blitz-April-16-2024"]
[Site "Chess.com"]
[Date "2024.04.16"]
[Round "2"]
[White "Denisenko_Denis"]
[Black "martinmena"]
[Result "0-1"]
[WhiteElo "2444"]
[BlackElo "2153"]
[TimeControl "180+1"]
[EndTime "8:17:11 PDT"]
[Termination "martinmena won by resignation"]

1. d4 {[%clk 0:02:58.2]} 1... d5 {[%clk 0:02:58.6]} 2. Bf4 {[%clk 0:02:58.1]}
2... Nf6 {[%clk 0:02:57.7]} 3. e3 {[%clk 0:02:58.1]} 3... e6 {[%clk 0:02:57.3]}
4. Nf3 {[%clk 0:02:57.9]} 4... Bd6 {[%clk 0:02:57.5]} 5. Bg3 {[%clk 0:02:57.6]}
5... b6 {[%clk 0:02:54.5]} 6. c3 {[%clk 0:02:57.2]} 6... O-O {[%clk 0:02:54.1]}
7. Nbd2 {[%clk 0:02:56.4]} 7... c5 {[%clk 0:02:51.4]} 8. Bd3 {[%clk 0:02:55.6]}
8... Ba6 {[%clk 0:02:50.7]} 9. Bxa6 {[%clk 0:02:54.3]} 9... Nxa6 {[%clk
0:02:51.6]} 10. Qe2 {[%clk 0:02:55.1]} 10... c4 {[%clk 0:02:49.2]} 11. e4 {[%clk
0:02:53]} 11... Bxg3 {[%clk 0:02:45.9]} 12. hxg3 {[%clk 0:02:52.6]} 12... Nxe4
{[%clk 0:02:22.1]} 13. Nxe4 {[%clk 0:02:51.6]} 13... dxe4 {[%clk 0:02:23]} 14.
Qxe4 {[%clk 0:02:50.1]} 14... h6 {[%clk 0:02:23.4]} 15. Ne5 {[%clk 0:02:45.9]}
15... Qd5 {[%clk 0:02:20.8]} 16. Qxd5 {[%clk 0:02:21.5]} 16... exd5 {[%clk
0:02:21.7]} 17. Kd2 {[%clk 0:02:21.5]} 17... f6 {[%clk 0:02:15.1]} 18. Ng6
{[%clk 0:02:20.7]} 18... Rfe8 {[%clk 0:02:14.6]} 19. Rae1 {[%clk 0:02:18.7]}
19... Kf7 {[%clk 0:02:14.7]} 20. Nf4 {[%clk 0:02:15.9]} 20... Nc7 {[%clk
0:02:14.8]} 21. g4 {[%clk 0:02:09.7]} 21... Rad8 {[%clk 0:02:07.3]} 22. Rh5
{[%clk 0:02:02.3]} 22... Ne6 {[%clk 0:01:20.1]} 23. Nxe6 {[%clk 0:01:22]} 23...
Rxe6 {[%clk 0:01:20.1]} 24. Rxe6 {[%clk 0:01:21.3]} 24... Kxe6 {[%clk 0:01:21]}
25. f4 {[%clk 0:01:19.8]} 25... Re8 {[%clk 0:01:17.3]} 26. Rh3 {[%clk
0:01:17.6]} 26... Kd6 {[%clk 0:01:11]} 27. Re3 {[%clk 0:01:17.1]} 27... Rxe3
{[%clk 0:00:52]} 28. Kxe3 {[%clk 0:01:18]} 28... g5 {[%clk 0:00:52]} 29. g3
{[%clk 0:01:15.3]} 29... Ke6 {[%clk 0:00:43.7]} 30. Kd2 {[%clk 0:01:12.4]} 30...
f5 {[%clk 0:00:34.9]} 31. fxg5 {[%clk 0:00:49.4]} 31... hxg5 {[%clk 0:00:25.7]}
32. Ke3 {[%clk 0:00:35.1]} 32... fxg4 {[%clk 0:00:25.1]} 33. Ke2 {[%clk
0:00:30.7]} 33... Kf5 {[%clk 0:00:24.4]} 34. Ke3 {[%clk 0:00:30.8]} 34... b5
{[%clk 0:00:22.8]} 35. a3 {[%clk 0:00:30.5]} 35... a5 {[%clk 0:00:21.4]} 36. Kf2
{[%clk 0:00:23.4]} 36... Ke4 {[%clk 0:00:21.6]} 37. Ke2 {[%clk 0:00:23.3]} 37...
a4 {[%clk 0:00:21]} 0-1

[Event "Early-Titled-Tuesday-Blitz-April-16-2024"]
[Site "Chess.com"]
[Date "2024.04.16"]
[Round "2"]
[White "djano"]
[Black "Ramil_Faizrakhmanov"]
[Result "0-1"]
[WhiteElo "2598"]
[BlackElo "2906"]
[TimeControl "180+1"]
[EndTime "8:17:13 PDT"]
[Termination "Ramil_Faizrakhmanov won by resignation"]

1. e4 {[%clk 0:03:00.9]} 1... c6 {[%clk 0:02:58.6]} 2. d4 {[%clk 0:03:00.5]}
2... d5 {[%clk 0:02:59.5]} 3. exd5 {[%clk 0:03:01.4]} 3... cxd5 {[%clk
0:02:59.8]} 4. Bd3 {[%clk 0:03:02]} 4... Nc6 {[%clk 0:03:00.3]} 5. c3 {[%clk
0:03:02.5]} 5... Qc7 {[%clk 0:03:00.3]} 6. Ne2 {[%clk 0:03:02.3]} 6... Bg4
{[%clk 0:02:59.2]} 7. O-O {[%clk 0:03:02.8]} 7... Nf6 {[%clk 0:02:59]} 8. Qe1
{[%clk 0:03:00.8]} 8... e6 {[%clk 0:02:58]} 9. Bg5 {[%clk 0:03:00.7]} 9... Be7
{[%clk 0:02:52.4]} 10. f3 {[%clk 0:02:56.4]} 10... Bh5 {[%clk 0:02:52.2]} 11.
Nf4 {[%clk 0:02:56]} 11... Bg6 {[%clk 0:02:51.6]} 12. Na3 {[%clk 0:02:43.5]}
12... a6 {[%clk 0:02:48.7]} 13. Nc2 {[%clk 0:02:37.7]} 13... Bd6 {[%clk
0:02:40.5]} 14. Qh4 {[%clk 0:02:07.4]} 14... O-O-O {[%clk 0:02:26.8]} 15. Ne1
{[%clk 0:01:50.9]} 15... Kb8 {[%clk 0:02:22.5]} 16. h3 {[%clk 0:01:44.7]} 16...
Ne7 {[%clk 0:02:20.3]} 17. Bxf6 {[%clk 0:01:10.6]} 17... gxf6 {[%clk 0:02:19.8]}
18. Ne2 {[%clk 0:01:04.5]} 18... f5 {[%clk 0:02:10.7]} 19. Rc1 {[%clk
0:00:57.6]} 19... Nc6 {[%clk 0:02:09.8]} 20. Kh1 {[%clk 0:00:51.5]} 20... Ka8
{[%clk 0:02:03.8]} 21. f4 {[%clk 0:00:51.8]} 21... Nb8 {[%clk 0:02:00.7]} 22.
Nf3 {[%clk 0:00:51.9]} 22... Nd7 {[%clk 0:02:00.4]} 23. Ne5 {[%clk 0:00:51.6]}
23... Nf6 {[%clk 0:02:00.5]} 24. Qxf6 {[%clk 0:00:46.8]} 24... Be7 {[%clk
0:01:56.7]} 25. Qg7 {[%clk 0:00:47.1]} 25... Rdg8 {[%clk 0:01:37.6]} 26. Qh6
{[%clk 0:00:44.5]} 26... Qd8 {[%clk 0:01:37.2]} 27. Bc4 {[%clk 0:00:36.1]} 27...
dxc4 {[%clk 0:01:32.5]} 28. Nf3 {[%clk 0:00:27.7]} 28... Qd5 {[%clk 0:01:13.4]}
29. Rf2 {[%clk 0:00:23.8]} 29... Qe4 {[%clk 0:01:08.5]} 30. Re1 {[%clk 0:00:19]}
30... Qe3 {[%clk 0:01:06.4]} 31. Kg1 {[%clk 0:00:17.5]} 31... Qe4 {[%clk
0:00:57.5]} 32. Ng3 {[%clk 0:00:16.8]} 32... Qd5 {[%clk 0:00:54.2]} 33. Ne5
{[%clk 0:00:17.2]} 33... f6 {[%clk 0:00:45.8]} 34. Nf3 {[%clk 0:00:12.9]} 34...
Bf7 {[%clk 0:00:45.2]} 35. Qh4 {[%clk 0:00:12.3]} 35... h5 {[%clk 0:00:40.7]}
36. Kh2 {[%clk 0:00:12.6]} 36... Rg7 {[%clk 0:00:39.8]} 37. Rfe2 {[%clk
0:00:12.5]} 37... Rhg8 {[%clk 0:00:39.4]} 38. Nf1 {[%clk 0:00:11.2]} 38... Bd6
{[%clk 0:00:38.5]} 39. g3 {[%clk 0:00:10.4]} 39... Qxf3 {[%clk 0:00:38.1]} 40.
Re3 {[%clk 0:00:10.5]} 40... Qd5 {[%clk 0:00:33.7]} 41. Qxh5 {[%clk 0:00:10.1]}
41... Bxh5 {[%clk 0:00:33.3]} 0-1

[Event "Early-Titled-Tuesday-Blitz-April-16-2024"]
[Site "Chess.com"]
[Date "2024.04.16"]
[Round "2"]
[White "bipe137"]
[Black "Chesstiger64"]
[Result "1-0"]
[WhiteElo "2732"]
[BlackElo "2405"]
[TimeControl "180+1"]
[EndTime "8:17:13 PDT"]
[Termination "bipe137 won by resignation"]

1. d4 {[%clk 0:03:00.9]} 1... d6 {[%clk 0:02:59.7]} 2. Nf3 {[%clk 0:02:59]} 2...
Bg4 {[%clk 0:02:58.4]} 3. c4 {[%clk 0:02:58.4]} 3... Nd7 {[%clk 0:02:58.3]} 4.
Nc3 {[%clk 0:02:54.5]} 4... c6 {[%clk 0:02:58.4]} 5. e4 {[%clk 0:02:53.2]} 5...
e5 {[%clk 0:02:57.5]} 6. Be2 {[%clk 0:02:52.6]} 6... Bxf3 {[%clk 0:02:56.9]} 7.
Bxf3 {[%clk 0:02:49.3]} 7... Ngf6 {[%clk 0:02:57.5]} 8. O-O {[%clk 0:02:48.4]}
8... Be7 {[%clk 0:02:56.9]} 9. Be3 {[%clk 0:02:46.2]} 9... a5 {[%clk 0:02:55.4]}
10. d5 {[%clk 0:02:46.3]} 10... c5 {[%clk 0:02:51.1]} 11. g3 {[%clk 0:02:40.7]}
11... h6 {[%clk 0:02:51.4]} 12. Bg2 {[%clk 0:02:41.1]} 12... g5 {[%clk
0:02:51.6]} 13. Kh1 {[%clk 0:02:39.8]} 13... Nf8 {[%clk 0:02:43.4]} 14. f4
{[%clk 0:02:38.6]} 14... gxf4 {[%clk 0:02:42.8]} 15. gxf4 {[%clk 0:02:35.4]}
15... exf4 {[%clk 0:02:42.8]} 16. Bxf4 {[%clk 0:02:35.2]} 16... Ng6 {[%clk
0:02:43.4]} 17. Bg3 {[%clk 0:02:33.4]} 17... Nd7 {[%clk 0:02:42.6]} 18. Qh5
{[%clk 0:02:26.1]} 18... Nde5 {[%clk 0:02:36.7]} 19. Bh3 {[%clk 0:02:22.2]}
19... Bh4 {[%clk 0:02:23.4]} 20. Bxe5 {[%clk 0:02:15]} 20... Nxe5 {[%clk
0:02:22.8]} 21. Be6 {[%clk 0:02:11.3]} 21... Rh7 {[%clk 0:02:02.2]} 22. Rg1
{[%clk 0:01:56]} 22... Kf8 {[%clk 0:01:26.2]} 23. Raf1 {[%clk 0:01:50.5]} 23...
Qe7 {[%clk 0:01:21.8]} 24. Nb5 {[%clk 0:01:37]} 24... Rd8 {[%clk 0:01:17.2]} 25.
Rg2 {[%clk 0:01:24.5]} 25... Bg5 {[%clk 0:01:08.7]} 26. h4 {[%clk 0:01:22.2]}
26... Kg7 {[%clk 0:01:05]} 27. Rh2 {[%clk 0:01:11.6]} 27... fxe6 {[%clk
0:00:31.4]} 28. hxg5 {[%clk 0:01:08.7]} 28... Rf8 {[%clk 0:00:20.6]} 29. gxh6+
{[%clk 0:01:03.4]} 29... Kh8 {[%clk 0:00:20.2]} 30. Rhf2 {[%clk 0:01:02.1]}
30... Rg8 {[%clk 0:00:14.6]} 31. Rf6 {[%clk 0:00:54.9]} 31... Ng4 {[%clk
0:00:11.1]} 32. Rf7 {[%clk 0:00:50.2]} 32... Rxf7 {[%clk 0:00:10]} 33. Rxf7
{[%clk 0:00:51.1]} 33... Qg5 {[%clk 0:00:10.2]} 34. Qxg5 {[%clk 0:00:49]} 34...
Rxg5 {[%clk 0:00:11.1]} 35. Nxd6 {[%clk 0:00:48.4]} 35... exd5 {[%clk
0:00:10.5]} 36. cxd5 {[%clk 0:00:44.9]} 36... Nxh6 {[%clk 0:00:10.6]} 37. Rxb7
{[%clk 0:00:42.4]} 37... Ng4 {[%clk 0:00:10.3]} 38. Nf7+ {[%clk 0:00:41.7]}
38... Kg7 {[%clk 0:00:09.6]} 39. Nxg5+ {[%clk 0:00:42.6]} 39... Kg6 {[%clk
0:00:10]} 40. d6 {[%clk 0:00:38.4]} 40... Kxg5 {[%clk 0:00:09.4]} 41. d7 {[%clk
0:00:38.8]} 41... Kf4 {[%clk 0:00:10]} 42. d8=Q {[%clk 0:00:38.7]} 42... Kg3
{[%clk 0:00:10.7]} 43. Qd6+ {[%clk 0:00:38]} 43... Kf3 {[%clk 0:00:10.2]} 44.
Rf7+ {[%clk 0:00:38.4]} 44... Ke2 {[%clk 0:00:09.6]} 45. Qf4 {[%clk 0:00:37.9]}
45... Nf2+ {[%clk 0:00:09.8]} 46. Qxf2+ {[%clk 0:00:38.1]} 1-0

[Event "Early-Titled-Tuesday-Blitz-April-16-2024"]
[Site "Chess.com"]
[Date "2024.04.16"]
[Round "2"]
[White "IshviAggarwal"]
[Black "Road2GM3000"]
[Result "0-1"]
[WhiteElo "2136"]
[BlackElo "2460"]
[TimeControl "180+1"]
[EndTime "8:17:13 PDT"]
[Termination "Road2GM3000 won on time"]

1. d4 {[%clk 0:03:00.7]} 1... d5 {[%clk 0:02:59.4]} 2. c4 {[%clk 0:02:55]} 2...
c6 {[%clk 0:02:59.5]} 3. Nf3 {[%clk 0:02:55.1]} 3... Nf6 {[%clk 0:02:59.6]} 4.
g3 {[%clk 0:02:54.1]} 4... Bf5 {[%clk 0:02:58.1]} 5. Bg2 {[%clk 0:02:52.6]} 5...
e6 {[%clk 0:02:58.5]} 6. O-O {[%clk 0:02:52.9]} 6... Nbd7 {[%clk 0:02:58.5]} 7.
Nc3 {[%clk 0:02:53.5]} 7... Be7 {[%clk 0:02:58.3]} 8. Nh4 {[%clk 0:02:52.6]}
8... Bg6 {[%clk 0:02:57.5]} 9. Nxg6 {[%clk 0:02:51.9]} 9... hxg6 {[%clk
0:02:58.4]} 10. e4 {[%clk 0:02:51.2]} 10... dxe4 {[%clk 0:02:58]} 11. Nxe4
{[%clk 0:02:52.1]} 11... Qa5 {[%clk 0:02:54.1]} 12. Be3 {[%clk 0:02:45.1]} 12...
Nxe4 {[%clk 0:02:48]} 13. Bxe4 {[%clk 0:02:44.1]} 13... O-O-O {[%clk 0:02:45.2]}
14. a3 {[%clk 0:02:37.6]} 14... Nb6 {[%clk 0:02:13.5]} 15. b4 {[%clk 0:02:27.8]}
15... Qh5 {[%clk 0:02:13.5]} 16. Qxh5 {[%clk 0:02:25.7]} 16... Rxh5 {[%clk
0:02:14.4]} 17. Rac1 {[%clk 0:02:18.2]} 17... Bf6 {[%clk 0:02:12.7]} 18. Rfd1
{[%clk 0:02:00.7]} 18... Kb8 {[%clk 0:02:05.7]} 19. Bf3 {[%clk 0:01:39.8]} 19...
Rhh8 {[%clk 0:01:59.2]} 20. h4 {[%clk 0:01:33.7]} 20... Be7 {[%clk 0:01:47.4]}
21. Kg2 {[%clk 0:00:51.7]} 21... Rd7 {[%clk 0:01:47.1]} 22. d5 {[%clk
0:00:34.2]} 22... cxd5 {[%clk 0:01:13.2]} 23. Bxb6 {[%clk 0:00:31.7]} 23... axb6
{[%clk 0:01:14.1]} 24. cxd5 {[%clk 0:00:31.8]} 24... e5 {[%clk 0:01:12]} 25. Be2
{[%clk 0:00:19.8]} 25... f5 {[%clk 0:01:08.8]} 26. Bb5 {[%clk 0:00:19.6]} 26...
Rc7 {[%clk 0:01:01.3]} 27. Ba4 {[%clk 0:00:11.6]} 27... Bd6 {[%clk 0:01:00.4]}
28. Bb3 {[%clk 0:00:11.7]} 28... Re7 {[%clk 0:00:57]} 29. Rc2 {[%clk 0:00:10.8]}
29... e4 {[%clk 0:00:57.1]} 30. Rdc1 {[%clk 0:00:09.8]} 30... Rd8 {[%clk
0:00:56.9]} 31. Rc3 {[%clk 0:00:06.1]} 31... Be5 {[%clk 0:00:55.6]} 32. R3c2
{[%clk 0:00:06.5]} 32... Bd4 {[%clk 0:00:53.6]} 33. Rd2 {[%clk 0:00:06.5]} 33...
Bf6 {[%clk 0:00:51.1]} 34. Re1 {[%clk 0:00:06.7]} 34... Red7 {[%clk 0:00:50.4]}
35. Rc2 {[%clk 0:00:06.4]} 35... g5 {[%clk 0:00:50.4]} 36. Rec1 {[%clk
0:00:06.7]} 36... gxh4 {[%clk 0:00:50.1]} 37. gxh4 {[%clk 0:00:07.6]} 37... Bxh4
{[%clk 0:00:50.4]} 38. Kh3 {[%clk 0:00:08.5]} 38... g5 {[%clk 0:00:50.4]} 39. a4
{[%clk 0:00:03.1]} 39... Rh7 {[%clk 0:00:50.6]} 40. Kg2 {[%clk 0:00:02.5]} 40...
f4 {[%clk 0:00:51.1]} 41. a5 {[%clk 0:00:02.2]} 41... bxa5 {[%clk 0:00:50.8]}
42. bxa5 {[%clk 0:00:02]} 42... f3+ {[%clk 0:00:50.6]} 43. Kf1 {[%clk
0:00:02.4]} 43... g4 {[%clk 0:00:47.6]} 0-1

[Event "Early-Titled-Tuesday-Blitz-April-16-2024"]
[Site "Chess.com"]
[Date "2024.04.16"]
[Round "2"]
[White "koncheto"]
[Black "ValentunHulka"]
[Result "0-1"]
[WhiteElo "2555"]
[BlackElo "2794"]
[TimeControl "180+1"]
[EndTime "8:17:15 PDT"]
[Termination "ValentunHulka won on time"]

1. e4 {[%clk 0:03:00.9]} 1... c5 {[%clk 0:03:00.2]} 2. Nf3 {[%clk 0:02:57.5]}
2... Nc6 {[%clk 0:03:00.6]} 3. d4 {[%clk 0:02:57.6]} 3... cxd4 {[%clk
0:03:00.4]} 4. Nxd4 {[%clk 0:02:57.7]} 4... Nf6 {[%clk 0:03:01.2]} 5. Nc3 {[%clk
0:02:57.5]} 5... e5 {[%clk 0:03:02]} 6. Ndb5 {[%clk 0:02:57.5]} 6... d6 {[%clk
0:03:02.7]} 7. Bg5 {[%clk 0:02:57.3]} 7... a6 {[%clk 0:03:03.4]} 8. Na3 {[%clk
0:02:57.4]} 8... b5 {[%clk 0:03:04.2]} 9. Nd5 {[%clk 0:02:57.3]} 9... Be7 {[%clk
0:03:04.3]} 10. Bxf6 {[%clk 0:02:57.4]} 10... Bxf6 {[%clk 0:03:05.2]} 11. c3
{[%clk 0:02:57.7]} 11... O-O {[%clk 0:03:04.4]} 12. h4 {[%clk 0:02:53.7]} 12...
Rb8 {[%clk 0:02:58.7]} 13. Nc2 {[%clk 0:02:49.9]} 13... Ne7 {[%clk 0:02:58.9]}
14. Nce3 {[%clk 0:02:32.3]} 14... Nxd5 {[%clk 0:02:50.9]} 15. Nxd5 {[%clk
0:02:32.6]} 15... a5 {[%clk 0:02:19.4]} 16. a3 {[%clk 0:02:15]} 16... Be6 {[%clk
0:02:06.3]} 17. g3 {[%clk 0:02:08.9]} 17... Qd7 {[%clk 0:01:47.5]} 18. Bg2
{[%clk 0:01:55.8]} 18... Bd8 {[%clk 0:01:44]} 19. O-O {[%clk 0:01:53.9]} 19...
Bb6 {[%clk 0:01:32.1]} 20. Nxb6 {[%clk 0:01:40.5]} 20... Rxb6 {[%clk 0:01:30.9]}
21. Qd3 {[%clk 0:01:38.8]} 21... Bc4 {[%clk 0:01:26.6]} 22. Qe3 {[%clk
0:01:38.7]} 22... Qc7 {[%clk 0:01:20.4]} 23. Rfd1 {[%clk 0:01:37.3]} 23... Rfb8
{[%clk 0:01:17.2]} 24. Rd2 {[%clk 0:01:24.1]} 24... Be6 {[%clk 0:01:13.1]} 25.
Rad1 {[%clk 0:01:20.1]} 25... b4 {[%clk 0:01:10.6]} 26. cxb4 {[%clk 0:01:13.6]}
26... axb4 {[%clk 0:01:11.5]} 27. axb4 {[%clk 0:01:12.8]} 27... Rxb4 {[%clk
0:01:02]} 28. Rxd6 {[%clk 0:01:12.6]} 28... h6 {[%clk 0:00:51]} 29. R6d2 {[%clk
0:00:53]} 29... Rxb2 {[%clk 0:00:49.6]} 30. Rxb2 {[%clk 0:00:53.2]} 30... Rxb2
{[%clk 0:00:50.5]} 31. Qd3 {[%clk 0:00:38.3]} 31... Kh7 {[%clk 0:00:48.6]} 32.
Qe3 {[%clk 0:00:21]} 32... Bg4 {[%clk 0:00:44.9]} 33. Rc1 {[%clk 0:00:17.6]}
33... Qd6 {[%clk 0:00:40.6]} 34. Qc3 {[%clk 0:00:12.1]} 34... Rd2 {[%clk
0:00:38.5]} 35. Bf3 {[%clk 0:00:11.7]} 35... Be6 {[%clk 0:00:21.9]} 36. Qe3
{[%clk 0:00:08.2]} 36... Rd3 {[%clk 0:00:19.5]} 37. Qe2 {[%clk 0:00:08.2]} 37...
Qa3 {[%clk 0:00:18.1]} 0-1

[Event "Early-Titled-Tuesday-Blitz-April-16-2024"]
[Site "Chess.com"]
[Date "2024.04.16"]
[Round "2"]
[White "BigAl"]
[Black "Aygehovit1992"]
[Result "1-0"]
[WhiteElo "2531"]
[BlackElo "2731"]
[TimeControl "180+1"]
[EndTime "8:17:16 PDT"]
[Termination "BigAl won by checkmate"]

1. Nf3 {[%clk 0:03:00.9]} 1... Nf6 {[%clk 0:02:58.4]} 2. g3 {[%clk 0:03:01.4]}
2... b5 {[%clk 0:02:58.4]} 3. Bg2 {[%clk 0:03:02.3]} 3... Bb7 {[%clk 0:02:58.9]}
4. O-O {[%clk 0:03:03.2]} 4... e6 {[%clk 0:02:59]} 5. c3 {[%clk 0:03:03.9]} 5...
c5 {[%clk 0:02:59]} 6. a4 {[%clk 0:03:04.3]} 6... b4 {[%clk 0:02:56.7]} 7. d4
{[%clk 0:02:59]} 7... cxd4 {[%clk 0:02:53.9]} 8. cxd4 {[%clk 0:02:41.8]} 8...
Be7 {[%clk 0:02:52.9]} 9. Nbd2 {[%clk 0:02:41.6]} 9... O-O {[%clk 0:02:52.6]}
10. Nb3 {[%clk 0:02:40.2]} 10... d6 {[%clk 0:02:49.9]} 11. a5 {[%clk 0:02:33]}
11... Nbd7 {[%clk 0:02:50.2]} 12. a6 {[%clk 0:02:31.1]} 12... Bd5 {[%clk
0:02:49.8]} 13. Bf4 {[%clk 0:02:21.8]} 13... Qb6 {[%clk 0:02:45.2]} 14. Nfd2
{[%clk 0:02:21.6]} 14... Bxg2 {[%clk 0:02:44.2]} 15. Kxg2 {[%clk 0:02:21.1]}
15... Nd5 {[%clk 0:02:43.8]} 16. e4 {[%clk 0:02:07.6]} 16... Nxf4+ {[%clk
0:02:43.6]} 17. gxf4 {[%clk 0:02:08.5]} 17... Rac8 {[%clk 0:02:43.4]} 18. Kh1
{[%clk 0:02:05.3]} 18... f5 {[%clk 0:02:30.4]} 19. Rg1 {[%clk 0:01:54.9]} 19...
fxe4 {[%clk 0:02:27.8]} 20. Qg4 {[%clk 0:01:54]} 20... Rf7 {[%clk 0:02:00.5]}
21. Qxe6 {[%clk 0:01:53.9]} 21... Rd8 {[%clk 0:01:10.3]} 22. Nxe4 {[%clk
0:01:51.5]} 22... d5 {[%clk 0:01:10.8]} 23. Qxb6 {[%clk 0:01:19.7]} 23... Nxb6
{[%clk 0:01:11.7]} 24. Nec5 {[%clk 0:01:17.2]} 24... Nc4 {[%clk 0:01:05.5]} 25.
Rae1 {[%clk 0:01:11.5]} 25... Nxb2 {[%clk 0:00:55.6]} 26. Ne6 {[%clk 0:00:54.2]}
26... Re8 {[%clk 0:00:38.8]} 27. Nc7 {[%clk 0:00:45.6]} 27... Rd8 {[%clk
0:00:34.9]} 28. Rg3 {[%clk 0:00:40]} 28... Nc4 {[%clk 0:00:31.1]} 29. Ne6 {[%clk
0:00:32.5]} 29... Re8 {[%clk 0:00:29.3]} 30. Nc7 {[%clk 0:00:32.3]} 30... Rd8
{[%clk 0:00:29]} 31. Ne6 {[%clk 0:00:32.4]} 31... Rd6 {[%clk 0:00:27]} 32. Nbc5
{[%clk 0:00:31.4]} 32... g6 {[%clk 0:00:22.8]} 33. Rb3 {[%clk 0:00:30.7]} 33...
Rb6 {[%clk 0:00:11.4]} 34. Nc7 {[%clk 0:00:25.9]} 34... Bxc5 {[%clk 0:00:08.4]}
35. dxc5 {[%clk 0:00:22.9]} 35... Rc6 {[%clk 0:00:08.4]} 36. Re8+ {[%clk
0:00:22.1]} 36... Kg7 {[%clk 0:00:08.4]} 37. Ne6+ {[%clk 0:00:22.4]} 37... Kf6
{[%clk 0:00:08.8]} 38. Nd8 {[%clk 0:00:22.2]} 38... Re7 {[%clk 0:00:06.7]} 39.
Rxe7 {[%clk 0:00:22.3]} 39... Rxa6 {[%clk 0:00:06.9]} 40. Rf7# {[%clk
0:00:18.9]} 1-0